bitfinex-derivatives/quotes_BTCF0:USTF0_20241029
["timestamp","ask_amount","ask_price","bid_price","bid_amount"]
[1730199617535,0.00012855,71198.0,71197.0,0.070266]
[1730199617741,0.00012855,71207.0,71204.0,0.070259]
[1730199617746,0.070258,71205.0,71204.0,0.070259]
[1730199618046,0.070258,71205.0,71204.0,0.13249433]
[1730199618446,0.070258,71205.0,71204.0,0.19649433]
[1730199618447,0.10466595,71205.0,71204.0,0.19649433]
[1730199618742,0.03440795,71205.0,71204.0,0.19649433]
[1730199619139,0.00012855,71207.0,71206.0,0.070257]
[1730199619342,0.03453608,71207.0,71206.0,0.070257]
[1730199619744,0.07766353,71207.0,71206.0,0.070257]
[1730199620244,0.07766353,71207.0,71206.0,0.07056856]
[1730199620451,0.14791953,71207.0,71206.0,0.07056856]
[1730199621243,0.10479208,71207.0,71206.0,0.07056856]
[1730199621442,0.00112855,71207.0,71206.0,0.07156856]
[1730199621642,0.00212855,71207.0,71206.0,0.07156856]
[1730199621843,0.07966334,71207.0,71206.0,0.07156856]
[1730199622040,0.00212855,71207.0,71206.0,0.07156856]
[1730199622445,0.07238455,71207.0,71206.0,0.07156856]
[1730199622745,0.00212855,71207.0,71206.0,0.07156856]
[1730199624244,0.00212855,71207.0,71206.0,0.49288856]
[1730199624449,1e-08,71207.0,71206.0,0.49288856]
[1730199626045,0.00300001,71207.0,71206.0,0.49288856]
[1730199626350,0.00300001,71207.0,71206.0,0.85368856]
[1730199626557,0.00300001,71207.0,71206.0,0.89571238]
[1730199627142,0.00300001,71207.0,71206.0,0.91561233]
[1730199627346,0.00300001,71207.0,71206.0,0.87956688]
[1730199627547,0.07025,71214.0,71213.0,0.07025]
[1730199627753,0.07025,71214.0,71213.0,0.49297377]
[1730199627955,0.07025,71214.0,71213.0,0.49328572]
[1730199628252,0.00012855,71215.0,71214.0,0.070249]
[1730199628656,0.00012855,71215.0,71214.0,0.07056095]
[1730199630058,0.03553271,71215.0,71213.0,0.38464025]
[1730199630254,0.00112855,71215.0,71214.0,0.070249]
[1730199630951,0.07865599,71215.0,71214.0,0.070249]
[1730199631561,0.14990399,71215.0,71214.0,0.071249]
[1730199633065,0.10678071,71215.0,71214.0,0.071249]
[1730199633254,0.14990254,71215.0,71214.0,0.071249]
[1730199633752,0.20029071,71215.0,71214.0,0.071249]
[1730199634359,0.20029071,71215.0,71214.0,0.04561211]
[1730199634659,0.14990254,71215.0,71214.0,0.04561211]
[1730199635164,0.14990113,71215.0,71214.0,0.04561211]
[1730199636451,0.10677944,71215.0,71214.0,0.04561211]
[1730199637064,0.07237655,71215.0,71214.0,0.04561211]
[1730199641460,0.00212855,71215.0,71214.0,0.04561211]
[1730199642754,0.00212855,71215.0,71214.0,0.4926656]
[1730199642951,0.39372871,71239.0,71225.0,0.070238]
[1730199642952,0.07036655,71226.0,71225.0,0.070238]
[1730199643152,0.07036655,71226.0,71225.0,0.47301182]
[1730199643362,0.07036655,71226.0,71225.0,0.431038]
[1730199644664,0.08136655,71226.0,71225.0,0.431038]
[1730199644966,0.08336655,71226.0,71225.0,0.431038]
[1730199645365,0.08336655,71226.0,71225.0,0.791838]
[1730199645566,0.08336655,71226.0,71225.0,0.85376177]
[1730199645965,0.01312855,71226.0,71225.0,0.85376177]
[1730199648362,0.04752404,71226.0,71225.0,0.85376177]
[1730199649162,0.04752473,71226.0,71225.0,0.85376177]
[1730199649362,0.04752473,71226.0,71225.0,0.791838]
[1730199649767,0.04752473,71226.0,71225.0,0.85376177]
[1730199651367,0.01312855,71226.0,71225.0,0.85376177]
[1730199656473,0.01312855,71226.0,71225.0,1.27496177]
[1730199657175,0.01312855,71226.0,71225.0,0.85376177]
[1730199661782,0.14528932,71226.0,71225.0,0.3608]
[1730199662576,0.14516077,71226.0,71225.0,0.3608]
[1730199663374,0.14516077,71226.0,71225.0,0.431038]
[1730199666779,0.083237,71226.0,71225.0,0.431038]
[1730199667878,0.11763473,71226.0,71225.0,0.431038]
[1730199668584,0.11763495,71226.0,71225.0,0.431038]
[1730199668885,0.14983495,71226.0,71225.0,0.431038]
[1730199670482,0.115437,71226.0,71225.0,0.431038]
[1730199672086,0.1498351,71226.0,71225.0,0.431038]
[1730199673478,0.1498352,71226.0,71225.0,0.431038]
[1730199674174,0.1498352,71226.0,71225.0,0.3608]
[1730199674376,0.19295298,71226.0,71225.0,0.3608]
[1730199674583,0.19295298,71226.0,71219.0,0.070244]
[1730199674786,0.13216677,71220.0,71219.0,0.070244]
[1730199674989,0.13216677,71220.0,71219.0,0.23879859]
[1730199675491,0.13216677,71220.0,71219.0,0.070244]
[1730199676279,0.13216677,71220.0,71219.0,0.072244]
[1730199677778,0.13216677,71220.0,71219.0,0.433044]
[1730199678683,0.13816677,71220.0,71219.0,0.433044]
[1730199681179,0.13816677,71220.0,71219.0,0.072244]
[1730199681386,0.13816677,71220.0,71219.0,0.433044]
[1730199682889,0.13816677,71220.0,71219.0,0.53140277]
[1730199684893,0.076243,71220.0,71219.0,0.17060277]
[1730199685193,0.076243,71220.0,71219.0,0.53140277]
[1730199687696,0.076243,71220.0,71219.0,0.17058675]
[1730199687899,0.076243,71220.0,71219.0,0.53138675]
[1730199688301,0.076243,71220.0,71219.0,0.61550742]
[1730199688599,0.076243,71220.0,71219.0,0.53138675]
[1730199688990,0.076243,71220.0,71219.0,0.61556605]
[1730199689800,0.076243,71220.0,71219.0,0.5172233]
[1730199689997,0.11064358,71220.0,71219.0,0.433044]
[1730199692504,0.11064358,71220.0,71219.0,0.072244]
[1730199692697,0.11064358,71220.0,71219.0,0.433044]
[1730199693501,0.11064358,71220.0,71219.0,0.072244]
[1730199693996,0.11064358,71220.0,71219.0,0.433044]
[1730199695400,0.11064358,71220.0,71219.0,0.072244]
[1730199695599,0.11064359,71220.0,71219.0,0.433044]
[1730199696400,0.076243,71220.0,71219.0,0.433044]
[1730199696700,0.15376262,71220.0,71219.0,0.433044]
[1730199697000,0.04040069,71220.0,71219.0,0.55689154]
[1730199697305,0.070234,71232.0,71231.0,0.070232]
[1730199697612,0.070234,71232.0,71231.0,0.49295577]
[1730199697613,0.11334766,71232.0,71231.0,0.49295577]
[1730199698102,0.070234,71232.0,71231.0,0.59129225]
[1730199698401,0.084234,71232.0,71231.0,0.59129225]
[1730199698600,0.084234,71232.0,71231.0,0.62319225]
[1730199698907,0.092234,71232.0,71231.0,0.62319225]
[1730199700605,0.092234,71232.0,71231.0,0.49103648]
[1730199701601,0.092234,71232.0,71231.0,0.16847895]
[1730199701801,0.022,71232.0,71230.0,0.07014773]
[1730199702106,0.13215577,71231.0,71230.0,0.07014773]
[1730199702399,0.070233,71230.0,71229.0,0.07014773]
[1730199702607,0.070234,71229.0,71228.0,0.07014773]
[1730199702808,0.070234,71229.0,71228.0,0.16867462]
[1730199702809,0.13215777,71229.0,71228.0,0.16867462]
[1730199703305,0.13215777,71229.0,71228.0,0.07014773]
[1730199703507,0.13215777,71229.0,71228.0,0.16873551]
[1730199703709,0.13215777,71229.0,71228.0,0.07014773]
[1730199703909,0.13215777,71229.0,71228.0,0.09858912]
[1730199704714,0.13215777,71229.0,71228.0,0.16874445]
[1730199705007,0.13715777,71229.0,71228.0,0.16874445]
[1730199705205,0.13715777,71229.0,71223.0,0.07024]
[1730199705206,0.070239,71224.0,71223.0,0.07024]
[1730199705408,0.13216277,71224.0,71223.0,0.07024]
[1730199705607,0.1665616,71224.0,71223.0,0.07024]
[1730199705795,0.1665616,71224.0,71223.0,0.43104]
[1730199706195,0.1665616,71224.0,71223.0,0.3608]
[1730199706602,0.1755616,71224.0,71223.0,0.3608]
[1730199710410,0.1755616,71224.0,71223.0,0.43104]
[1730199712008,0.11363783,71224.0,71223.0,0.49296377]
[1730199712215,0.11363783,71224.0,71223.0,0.65372271]
[1730199712216,0.009,71224.0,71223.0,0.65372271]
[1730199712802,0.02576407,71235.0,71223.0,0.68582271]
[1730199712998,0.070228,71235.0,71234.0,0.48713596]
[1730199713209,0.070228,71235.0,71234.0,0.48744761]
[1730199713603,0.070228,71235.0,71234.0,0.43134065]
[1730199714212,0.095228,71235.0,71234.0,0.43134065]
[1730199715115,0.081228,71235.0,71234.0,0.36111165]
[1730199715309,0.095228,71235.0,71234.0,0.36211165]
[1730199715514,0.095228,71235.0,71234.0,0.41821861]
[1730199716324,0.095228,71235.0,71234.0,0.41821479]
[1730199717113,0.095228,71235.0,71234.0,0.36211165]
[1730199719036,0.1200078,71235.0,71234.0,0.36211165]
[1730199720338,0.19751653,71235.0,71234.0,0.36211165]
[1730199724137,0.17273673,71235.0,71234.0,0.36211165]
[1730199724327,0.17273673,71235.0,71234.0,0.42403542]
[1730199724637,0.17273673,71235.0,71234.0,0.22719864]
[1730199725731,0.16173673,71235.0,71234.0,0.22719864]
[1730199725933,0.16973673,71235.0,71234.0,0.22719864]
[1730199726618,0.16873673,71235.0,71234.0,0.22719864]
[1730199727418,0.16873673,71235.0,71234.0,0.33472417]
[1730199727419,0.083228,71235.0,71234.0,0.33472417]
[1730199727720,0.14515177,71235.0,71234.0,0.16417543]
[1730199727909,0.13715177,71235.0,71234.0,0.16417543]
[1730199728109,0.13715177,71235.0,71234.0,0.00331165]
[1730199728309,0.13715177,71235.0,71234.0,0.05942743]
[1730199728508,0.16985177,71235.0,71234.0,0.00331165]
[1730199728708,0.20015177,71235.0,71234.0,0.00331165]
[1730199732212,0.29143177,71235.0,71234.0,0.00331165]
[1730199732405,0.075228,71235.0,71234.0,0.06523542]
[1730199733013,0.005,71235.0,71234.0,0.13546442]
[1730199734512,0.005,71235.0,71234.0,0.16798895]
[1730199734712,0.005,71235.0,71234.0,0.23811851]
[1730199735332,0.005,71235.0,71234.0,0.35230259]
[1730199735539,0.005,71235.0,71234.0,0.26814712]
[1730199736635,0.005,71235.0,71234.0,0.3522951]
[1730199737028,0.005,71235.0,71234.0,0.26814712]
[1730199738640,0.075228,71235.0,71234.0,0.26814712]
[1730199738845,0.075228,71235.0,71234.0,0.17369882]
[1730199739237,0.075228,71235.0,71234.0,0.2578468]
[1730199740643,0.1696763,71235.0,71234.0,0.10346982]
[1730199742434,0.1696763,71235.0,71234.0,0.00331165]
[1730199742435,0.20407255,71235.0,71234.0,0.00331165]
[1730199748625,0.24718592,71235.0,71234.0,0.00331165]
[1730199750327,0.24718592,71235.0,71234.0,0.22358537]
[1730199750328,0.1696763,71235.0,71234.0,0.22358537]
[1730199750529,0.1696763,71235.0,71234.0,0.10380292]
[1730199754829,0.075228,71235.0,71234.0,0.10380292]
[1730199755729,0.1696763,71235.0,71234.0,0.10380292]
[1730199756436,0.13721886,71235.0,71234.0,0.10380292]
[1730199757533,0.13721886,71235.0,71234.0,0.00331165]
[1730199765350,0.13721886,71235.0,71234.0,0.1041798]
[1730199772440,0.13721886,71235.0,71234.0,0.07355669]
[1730199773346,0.13721886,71235.0,71234.0,0.1743943]
[1730199773553,0.13721886,71235.0,71234.0,0.17442192]
[1730199774644,0.13721886,71235.0,71234.0,0.10417688]
[1730199777352,0.13721886,71235.0,71234.0,0.10420976]
[1730199779843,0.13721886,71235.0,71234.0,0.17447115]
[1730199780552,0.17161524,71235.0,71234.0,0.00331165]
[1730199780854,0.17161524,71235.0,71219.0,0.36290596]
[1730199780855,0.070243,71220.0,71219.0,0.36290596]
[1730199781076,0.10463938,71220.0,71219.0,0.431044]
[1730199781780,0.1046424,71220.0,71219.0,0.431044]
[1730199782280,0.1046424,71220.0,71219.0,0.461844]
[1730199782879,0.071243,71220.0,71219.0,0.475844]
[1730199784076,0.072243,71220.0,71219.0,0.475844]
[1730199785473,0.002,71220.0,71219.0,0.475844]
[1730199786180,0.002,71220.0,71219.0,0.48023671]
[1730199786571,0.002,71220.0,71219.0,0.90147671]
[1730199787090,0.002,71220.0,71219.0,0.897084]
[1730199787479,0.02304194,71223.0,71219.0,1.11623836]
[1730199787673,0.070239,71227.0,71226.0,0.070237]
[1730199787869,0.13222986,71227.0,71226.0,0.28939136]
[1730199788509,0.13222986,71227.0,71226.0,0.21915436]
[1730199788673,0.13222986,71227.0,71226.0,0.09999353]
[1730199790167,0.13322986,71227.0,71226.0,0.18423053]
[1730199790767,0.13422986,71227.0,71226.0,0.18523053]
[1730199791279,0.13422986,71227.0,71226.0,0.18487242]
[1730199794877,0.13422986,71227.0,71226.0,0.30351011]
[1730199795074,0.072239,71227.0,71226.0,0.18487242]
[1730199795330,0.072239,71227.0,71226.0,0.30358528]
[1730199795501,0.072239,71227.0,71226.0,0.085237]
[1730199800015,0.072239,71227.0,71226.0,0.10999929]
[1730199802610,0.072239,71227.0,71226.0,0.32885303]
[1730199802821,0.072239,71227.0,71226.0,0.39084389]
[1730199803914,0.072239,71227.0,71226.0,0.30409074]
[1730199805723,0.072239,71227.0,71226.0,0.30410261]
[1730199809614,0.072239,71227.0,71226.0,0.085237]
[1730199812301,0.13422986,71227.0,71226.0,0.085237]
[1730199817691,0.13422986,71227.0,71226.0,0.30268285]
[1730199820397,0.13422986,71227.0,71226.0,0.30271233]
[1730199822007,0.072239,71227.0,71226.0,0.30271233]
[1730199825098,0.072239,71227.0,71226.0,0.085237]
[1730199825398,0.072239,71227.0,71226.0,0.30279779]
[1730199828500,0.072239,71227.0,71226.0,0.11425392]
[1730199829703,0.072239,71227.0,71226.0,0.18449092]
[1730199832811,0.072239,71227.0,71226.0,0.085237]
[1730199834503,0.072239,71227.0,71226.0,0.015]
[1730199834708,0.072239,71227.0,71226.0,0.085237]
[1730199841512,0.072239,71227.0,71226.0,0.015]
[1730199842117,0.072239,71227.0,71226.0,0.085237]
[1730199843628,0.072239,71227.0,71226.0,0.14722786]
[1730199843921,0.002,71227.0,71226.0,0.14722786]
[1730199845023,0.002,71227.0,71226.0,0.36305038]
[1730199846925,0.07023,71234.0,71233.0,0.07023]
[1730199847125,0.07023,71234.0,71233.0,0.49302086]
[1730199848122,0.07423,71234.0,71233.0,0.49302086]
[1730199848418,0.07423,71234.0,71233.0,0.49402086]
[1730199857029,0.07423,71234.0,71233.0,0.59221311]
[1730199857238,0.07423,71234.0,71233.0,0.61739109]
[1730199860129,0.07423,71234.0,71233.0,0.68751972]
[1730199860531,0.07423,71234.0,71233.0,0.6877194]
[1730199863125,0.07423,71234.0,71233.0,0.51919884]
[1730199865633,0.004,71234.0,71233.0,0.51919884]
[1730199866845,0.004,71234.0,71233.0,0.5811897]
[1730199867140,0.03839275,71234.0,71233.0,0.51919884]
[1730199870348,0.004,71234.0,71233.0,0.73571731]
[1730199871845,0.004,71234.0,71233.0,0.67372645]
[1730199872061,0.004,71234.0,71233.0,0.73571731]
[1730199874248,0.004,71234.0,71233.0,0.67372645]
[1730199874544,0.004,71234.0,71233.0,0.73571731]
[1730199874943,0.004,71234.0,71233.0,0.83314449]
[1730199875643,0.004,71234.0,71233.0,0.73490701]
[1730199876450,0.004,71234.0,71233.0,0.67291615]
[1730199876451,0.13621986,71234.0,71233.0,0.67291615]
[1730199876636,0.13621986,71234.0,71233.0,0.60242012]
[1730199877445,0.13621986,71234.0,71233.0,0.46020873]
[1730199878245,0.21372855,71234.0,71233.0,0.3618]
[1730199878440,0.1706157,71234.0,71233.0,0.3618]
[1730199878841,0.63488858,71234.0,71233.0,0.3618]
[1730199879643,0.63488921,71234.0,71233.0,0.3618]
[1730199880245,0.21372921,71234.0,71233.0,0.3618]
[1730199880847,0.17061599,71234.0,71233.0,0.3618]
[1730199885456,0.13621986,71234.0,71233.0,0.46023109]
[1730199885658,0.13621986,71234.0,71233.0,0.09943109]
[1730199888243,0.13621986,71234.0,71233.0,0.16966109]
[1730199889254,0.13621986,71234.0,71233.0,0.07123]
[1730199889560,0.13621986,71234.0,71233.0,0.16976201]
[1730199889751,0.074229,71234.0,71233.0,0.23175287]
[1730199890451,0.004,71234.0,71233.0,0.23175287]
[1730199891544,0.004,71234.0,71233.0,0.31594226]
[1730199893053,0.004,71234.0,71233.0,0.23175287]
[1730199893561,0.004,71234.0,71233.0,0.34894946]
[1730199894053,0.004,71234.0,71233.0,0.23175287]
[1730199894360,0.004,71234.0,71233.0,0.34861367]
[1730199899662,0.074229,71234.0,71233.0,0.34861367]
[1730199900565,0.074229,71234.0,71233.0,0.13322086]
[1730199903268,0.074229,71234.0,71233.0,0.07123]
[1730199904161,0.074229,71234.0,71233.0,0.13322086]
[1730199905669,0.074229,71234.0,71233.0,0.49402086]
[1730199907068,0.074229,71234.0,71233.0,0.3618]
[1730199908471,0.13621986,71234.0,71233.0,0.001]
[1730199911670,0.074229,71234.0,71233.0,0.001]
[1730199911876,0.074229,71234.0,71233.0,0.06299086]
[1730199912576,0.074229,71234.0,71233.0,0.13322086]
[1730199919488,0.074229,71234.0,71233.0,0.49402086]
[1730199920587,0.004,71234.0,71233.0,0.49402086]
[1730199921489,0.074229,71234.0,71233.0,0.49402086]
[1730199921692,0.004,71234.0,71233.0,0.49402086]
[1730199923793,0.004,71234.0,71233.0,0.70966529]
[1730199925594,0.004,71234.0,71233.0,0.70963521]
[1730199929893,0.004,71234.0,71233.0,0.70995452]
[1730199931789,0.004,71234.0,71233.0,0.59253246]
[1730199931986,0.004,71234.0,71233.0,0.55601172]
[1730199932400,0.03839164,71234.0,71233.0,0.55601172]
[1730199932597,0.004,71234.0,71233.0,0.55601172]
[1730199933001,0.004,71234.0,71233.0,0.64717172]
[1730199934293,0.004,71234.0,71233.0,0.58518086]
[1730199934998,0.004,71234.0,71233.0,0.64717172]
[1730199935593,0.004,71234.0,71233.0,0.65156331]
[1730199936700,0.004,71234.0,71233.0,0.58957245]
[1730199936907,0.004,71234.0,71233.0,0.65156331]
[1730199938909,0.004,71234.0,71233.0,0.75004273]
[1730199939297,0.004,71234.0,71233.0,0.75004257]
[1730199939999,0.004,71234.0,71233.0,0.86741754]
[1730199940507,0.00210593,71249.0,71248.0,0.070216]
[1730199940707,0.070208,71256.0,71255.0,0.070208]
[1730199941013,0.070208,71256.0,71255.0,0.13219886]
[1730199941709,0.070208,71256.0,71255.0,0.070208]
[1730199941908,0.070208,71256.0,71255.0,0.1262559]
[1730199942107,0.070208,71256.0,71255.0,0.13219886]
[1730199942612,0.070208,71256.0,71255.0,0.18823157]
[1730199942816,0.082208,71256.0,71255.0,0.18923157]
[1730199943205,0.096208,71256.0,71255.0,0.19023157]
[1730199944509,0.096208,71256.0,71255.0,0.13419886]
[1730199944715,0.084208,71256.0,71255.0,0.13319886]
[1730199944910,0.088208,71256.0,71255.0,0.13419886]
[1730199945603,0.076208,71256.0,71255.0,0.13319886]
[1730199946699,0.006,71256.0,71255.0,0.17519934]
[1730199946903,0.006,71256.0,71255.0,0.13319886]
[1730199947101,0.006,71256.0,71255.0,0.16359886]
[1730199947305,0.006,71256.0,71255.0,0.21963157]
[1730199947506,0.006,71256.0,71255.0,0.16359886]
[1730199947706,0.006,71256.0,71255.0,0.21963157]
[1730199948015,0.006,71256.0,71255.0,0.1886411]
[1730199948515,0.006,71256.0,71255.0,0.24460083]
[1730199949506,0.006,71256.0,71255.0,0.2212411]
[1730199951805,0.006,71256.0,71255.0,0.6422811]
[1730199952010,0.006,71256.0,71255.0,0.6749811]
[1730199952920,0.006,71256.0,71255.0,0.2539411]
[1730199954122,0.006,71256.0,71255.0,0.25833138]
[1730199957814,0.006,71256.0,71255.0,0.2539411]
[1730199958015,0.006,71256.0,71255.0,0.25833127]
[1730199959515,0.006,71256.0,71255.0,0.67937127]
[1730199959917,0.006,71256.0,71255.0,0.68795273]
[1730199960916,0.070194,71271.0,71255.0,0.89948102]
[1730199961128,0.070194,71271.0,71270.0,0.430994]
[1730199961308,0.00210535,71272.0,71270.0,0.3608]
[1730199961514,0.07229735,71272.0,71271.0,0.070193]
[1730199962417,0.00210535,71272.0,71271.0,0.13218386]
[1730199962613,0.00210535,71272.0,71271.0,0.22892574]
[1730199962916,0.00210535,71272.0,71271.0,0.22992574]
[1730199962917,0.01610535,71272.0,71271.0,0.22992574]
[1730199963309,0.0441546,71273.0,71271.0,0.15973274]
[1730199963514,0.0441546,71273.0,71272.0,0.16693388]
[1730199964724,0.0441546,71273.0,71272.0,0.16793388]
[1730199965713,0.0451546,71273.0,71272.0,0.16793388]
[1730199968716,0.001,71273.0,71272.0,0.16793388]
[1730199969118,0.001,71273.0,71272.0,0.071192]
[1730199971620,0.06199086,71282.0,71272.0,0.071192]
[1730199971621,0.070889,71296.0,71272.0,0.48391086]
[1730199971818,0.00072,71296.0,71295.0,0.070169]
[1730199972030,0.430966,71300.0,71299.0,0.070165]
[1730199972331,0.070162,71304.0,71303.0,0.070161]
[1730199972629,0.070162,71304.0,71303.0,0.13215186]
[1730199973225,0.45652,71309.0,71303.0,0.06199086]
[1730199973426,0.525955,71309.0,71308.0,0.06199086]
[1730199973817,0.525955,71309.0,71308.0,0.13214686]
[1730199973818,0.946675,71309.0,71308.0,0.13214686]
[1730199974317,0.525955,71309.0,71308.0,0.13214686]
[1730199975429,0.529955,71309.0,71308.0,0.13314686]
[1730199975932,0.525955,71309.0,71308.0,0.13214686]
[1730199976129,0.529955,71309.0,71308.0,0.13414686]
[1730199976328,0.532955,71309.0,71308.0,0.13414686]
[1730199977935,0.532955,71309.0,71308.0,0.002]
[1730199978836,0.532955,71309.0,71308.0,0.072156]
[1730199979228,0.532955,71309.0,71308.0,0.13414686]
[1730199979736,0.3678,71309.0,71308.0,0.13414686]
[1730199980231,0.437955,71309.0,71308.0,0.13414686]
[1730199980833,0.437955,71309.0,71308.0,0.072156]
[1730199981229,0.437955,71309.0,71308.0,0.002]
[1730199981436,0.077155,71309.0,71308.0,0.002]
[1730199983136,0.078155,71309.0,71308.0,0.002]
[1730199983935,0.498875,71309.0,71308.0,0.002]
[1730199984233,0.498875,71309.0,71294.0,0.49296086]
[1730199984234,0.070169,71295.0,71294.0,0.49296086]
[1730199984435,0.070169,71295.0,71294.0,0.3608]
[1730199985831,0.073169,71295.0,71294.0,0.3668]
[1730199989439,0.070184,71283.0,71282.0,0.070181]
[1730199989846,0.070184,71280.0,71279.0,0.13217486]
[1730199991340,0.070184,71280.0,71279.0,0.22680564]
[1730199991541,0.071184,71280.0,71279.0,0.24080564]
[1730199991845,0.001,71280.0,71279.0,0.10863078]
[1730199992140,0.071184,71280.0,71279.0,0.10863078]
[1730199992837,0.071184,71280.0,71279.0,0.12263078]
[1730199994042,0.071184,71280.0,71279.0,0.18462164]
[1730199995038,0.071184,71280.0,71279.0,0.25480664]
[1730199996052,0.071184,71280.0,71279.0,0.12263078]
[1730199998844,0.071184,71280.0,71279.0,0.19281578]
[1730199999347,0.071184,71280.0,71279.0,0.22301578]
[1730199999649,0.071184,71280.0,71279.0,0.30660623]
[1730199999845,0.071184,71280.0,71279.0,0.30674291]
[1730200000051,0.071184,71280.0,71279.0,0.22301578]
[1730200000546,0.001,71280.0,71279.0,0.22355103]
[1730200001350,0.001,71280.0,71279.0,0.25475103]
[1730200002751,0.071184,71280.0,71279.0,0.25475103]
[1730200002952,0.02202392,71280.0,71279.0,0.3680649]
[1730200003153,0.070183,71283.0,71282.0,0.070181]
[1730200003452,0.070183,71283.0,71282.0,0.31107214]
[1730200003847,0.070183,71283.0,71282.0,0.22733789]
[1730200004248,0.070183,71283.0,71282.0,0.58813789]
[1730200004446,0.070183,71283.0,71282.0,0.60213789]
[1730200004654,0.071183,71283.0,71282.0,0.61613789]
[1730200004849,0.071183,71283.0,71282.0,0.69987547]
[1730200005449,0.071183,71283.0,71282.0,0.69938458]
[1730200005951,0.071183,71283.0,71282.0,0.615647]
[1730200006348,0.071183,71283.0,71282.0,0.52097186]
[1730200007847,0.071183,71283.0,71282.0,0.458981]
[1730200010556,0.071183,71283.0,71282.0,0.3888]
[1730200011050,0.071183,71283.0,71282.0,0.458982]
[1730200014259,0.071183,71283.0,71282.0,0.63754912]
[1730200015150,0.071183,71283.0,71282.0,0.55381154]
[1730200016661,0.071183,71283.0,71282.0,0.48362954]
[1730200019264,0.071183,71283.0,71282.0,0.56736712]
[1730200019865,0.071183,71283.0,71282.0,0.48362954]
[1730200020364,0.071183,71283.0,71282.0,0.56736712]
[1730200021359,0.071183,71283.0,71282.0,0.3888]
[1730200021564,0.071183,71283.0,71282.0,0.458982]
[1730200021759,0.071183,71283.0,71282.0,0.50098872]
[1730200022754,0.071183,71283.0,71282.0,0.43080672]
[1730200023160,0.071183,71283.0,71282.0,0.50098872]
[1730200024665,0.071183,71283.0,71282.0,0.43080672]
[1730200025163,0.071183,71283.0,71282.0,0.3888]
[1730200025664,0.071183,71283.0,71282.0,0.43080765]
[1730200026556,0.071183,71283.0,71282.0,0.3888]
[1730200027771,0.071183,71283.0,71282.0,0.43081304]
[1730200028065,0.103983,71283.0,71282.0,0.3888]
[1730200028768,0.16597386,71283.0,71282.0,0.3888]
[1730200029464,0.16597386,71283.0,71282.0,0.59640758]
[1730200030161,0.16597386,71283.0,71282.0,0.23560758]
[1730200030355,0.16597386,71283.0,71282.0,0.12271314]
[1730200030558,0.16597386,71283.0,71282.0,0.20676541]
[1730200030964,0.16597386,71283.0,71282.0,0.12271314]
[1730200032360,0.16597386,71283.0,71282.0,0.19273215]
[1730200032667,0.070186,71278.0,71277.0,0.08405725]
[1730200032962,0.13217686,71278.0,71277.0,0.08405725]
[1730200033403,0.06199086,71278.0,71276.0,0.08405725]
[1730200033587,0.070188,71276.0,71275.0,0.08405725]
[1730200033783,0.13217886,71276.0,71275.0,0.08405725]
[1730200035286,0.13217886,71276.0,71272.0,0.3608]
[1730200035287,0.07019,71274.0,71273.0,0.08405725]
[1730200035474,0.13218086,71274.0,71273.0,0.08405725]
[1730200036365,0.13218086,71274.0,71273.0,0.11234418]
[1730200036566,0.13318086,71274.0,71273.0,0.11234418]
[1730200037168,0.13418086,71274.0,71273.0,0.11234418]
[1730200038167,0.06399086,71274.0,71273.0,0.11232008]
[1730200038374,0.13418086,71274.0,71273.0,0.11232008]
[1730200038671,0.06399086,71274.0,71273.0,0.11231051]
[1730200038870,0.13418086,71274.0,71273.0,0.11231051]
[1730200039070,0.07219,71274.0,71273.0,0.11231051]
[1730200039264,0.13418086,71274.0,71273.0,0.11231051]
[1730200039471,0.15973915,71274.0,71273.0,0.11231051]
[1730200039869,0.07219,71274.0,71273.0,0.11231051]
[1730200040968,0.07219,71274.0,71273.0,0.18250151]
[1730200041479,0.07219,71274.0,71273.0,0.54330151]
[1730200042878,0.07219,71274.0,71273.0,0.54263113]
[1730200043674,0.07219,71274.0,71273.0,0.430991]
[1730200043879,0.07219,71274.0,71273.0,0.464091]
[1730200048478,0.07219,71274.0,71273.0,0.48930542]
[1730200055583,0.002,71274.0,71273.0,0.48930542]
[1730200055884,0.002,71274.0,71273.0,0.58304589]
[1730200058882,0.03935424,71274.0,71273.0,0.48930542]
[1730200059582,0.10954424,71274.0,71273.0,0.48930542]
[1730200060487,0.10957748,71274.0,71273.0,0.48930542]
[1730200060984,0.07219,71274.0,71273.0,0.48930542]
[1730200063289,0.10961568,71274.0,71273.0,0.48930542]
[1730200065497,0.07219,71274.0,71273.0,0.48930542]
[1730200066881,0.07219,71274.0,71273.0,0.6944421]
[1730200067285,0.07219,71274.0,71273.0,0.69450002]
[1730200073585,0.070182,71283.0,71273.0,0.82411416]
[1730200073795,0.070182,71283.0,71282.0,0.06199086]
[1730200074100,0.10794919,71283.0,71282.0,0.06199086]
[1730200074899,0.10894919,71283.0,71282.0,0.13217286]
[1730200075299,0.10994919,71283.0,71282.0,0.13217286]
[1730200075494,0.071182,71283.0,71282.0,0.13217286]
[1730200075702,0.072182,71283.0,71282.0,0.14217286]
[1730200076793,0.071182,71283.0,71282.0,0.14217286]
[1730200076987,0.072182,71283.0,71282.0,0.14817286]
[1730200081202,0.072182,71283.0,71282.0,0.086182]
[1730200081805,0.072182,71283.0,71282.0,0.15622038]
[1730200082291,0.072182,71283.0,71282.0,0.2496995]
[1730200082691,0.072182,71283.0,71282.0,0.1795175]
[1730200083104,0.072182,71283.0,71282.0,0.08603838]
[1730200083499,0.072182,71283.0,71282.0,0.17952037]
[1730200083902,0.072182,71283.0,71282.0,0.08603838]
[1730200084405,0.072182,71283.0,71282.0,0.016]
[1730200085502,0.072182,71283.0,71282.0,0.17972404]
[1730200085803,0.072182,71283.0,71282.0,0.016]
[1730200089608,0.793062,71283.0,71282.0,0.016]
[1730200089804,0.793062,71283.0,71278.0,0.07003838]
[1730200089805,0.070185,71279.0,71278.0,0.07003838]
[1730200090112,0.13217586,71279.0,71278.0,0.16373356]
[1730200090306,0.55305586,71279.0,71278.0,0.07003838]
[1730200090507,0.54597086,71279.0,71277.0,0.07003838]
[1730200090707,0.13217686,71278.0,71277.0,0.07003838]
[1730200091006,0.55305686,71278.0,71277.0,0.07003838]
[1730200091409,0.070187,71277.0,71276.0,0.07003838]
[1730200091607,0.13217786,71277.0,71276.0,0.16369754]
[1730200091808,0.55305786,71277.0,71276.0,0.16369754]